fUSD/lending_fUSD_20251213
["ID","MTS","AMOUNT","RATE_DAILY","PERIOD"]
[398437443,1765654458381,-1728.43525397,0.000525,120]
[398437444,1765654458422,-3656.60453151,0.000525,120]
[398437445,1765654458466,-16263.24947909,0.000525,120]
[398437446,1765654458514,-1100.0,0.0005254,60]
[398437447,1765654458775,-1370.82,0.00052602,120]
[398437448,1765654458851,-2000.0,0.0005263,69]
[398437449,1765654458890,-483.0,0.00052659,120]
[398437450,1765654458928,-5095.46220946,0.000528,120]
[398437451,1765654458965,-191.0,0.000529,120]
[398437452,1765654459001,-161.0,0.000529,120]
[398437453,1765654459037,-7348.3068779,0.000529,120]
[398437454,1765654459071,-18089.0,0.00052975,60]
[398437455,1765654459109,-1000.0,0.00052999,120]
[398437456,1765654459146,-191.96294097,0.00053,120]
[398437457,1765654459184,-176.80381603,0.00053,120]
[398437458,1765654459221,-150.0,0.00053,120]
[398437459,1765654459256,-1000.0,0.00053,120]
[398437460,1765654459290,-500.0,0.00053,120]
[398437461,1765654459324,-500.0,0.00053,120]
[398437462,1765654459361,-500.0,0.00053,120]
[398437463,1765654459396,-11000.0,0.00053,120]
[398437464,1765654459434,-1764.0,0.00053,120]
[398437465,1765654459473,-1574.0,0.00053,120]
[398437466,1765654459511,-5000.0,0.00053,90]
[398437467,1765654459549,-200.0,0.00053006,120]
[398437468,1765654459588,-2766.60142162,0.00053099,120]
[398437469,1765654459627,-418.06476914,0.00053099,120]
[398437470,1765654459668,-433.07973233,0.00053099,120]
[398437471,1765654459707,-1600.0,0.00053362,60]
[398437472,1765654459746,-18566.0,0.00053379,120]
[398437473,1765654459786,-2132.24016686,0.000534,120]
[398437474,1765654459823,-191.0,0.000534,120]
[398437475,1765654459861,-161.0,0.000534,120]
[398437476,1765654459897,-500.0,0.000535,120]
[398437477,1765654459931,-3566.90590168,0.000535,120]
[398437478,1765654459967,-1100.0,0.00053636,60]
[398437479,1765654460002,-1739.75344179,0.00053666,120]
[398437480,1765654460038,-782.52,0.00053666,120]
[398437481,1765654460074,-1370.82,0.00053698,120]
[398437482,1765654460109,-266.6,0.000537,60]
[398437483,1765654460147,-152.0,0.00053791,120]
[398437484,1765654460184,-1346.6,0.00053797,120]
[398437485,1765654460222,-1000.0,0.000538,120]
[398437486,1765654460259,-1500.0,0.00053846,60]
[398437487,1765654460296,-1500.0,0.00053846,60]
[398437488,1765654460332,-1125.06875403,0.0005385,120]
[398437489,1765654460368,-191.0,0.000539,120]
[398437490,1765654460403,-161.0,0.000539,120]
[398437491,1765654460438,-956.21,0.000539,120]
[398437492,1765654460473,-70144.92268243,0.0005392,120]
[398437493,1765654460510,-18089.0,0.00053975,60]
[398437494,1765654460547,-2083.89159993,0.00053975,30]
[398437495,1765654460582,-4099.8125,0.0005398,120]
[398437496,1765654460617,-1000.0,0.00053999,120]
[398437497,1765654460653,-3068.49953486,0.00054,120]
[398437498,1765654460692,-869.24857486,0.00054,30]
[398437499,1765654460729,-677.45683984,0.00054,30]
[398437500,1765654460766,-860.53773691,0.00054,120]
[398437501,1765654460801,-150.0,0.00054,120]
[398437502,1765654460835,-1000.0,0.00054,120]
[398437503,1765654460872,-500.0,0.00054,120]
[398437504,1765654460907,-710.48280212,0.00054,120]
[398437505,1765654460945,-300.0,0.00054,120]
[398437506,1765654460980,-2000.0,0.00054,60]
[398437507,1765654461013,-7208.41040042,0.00054,120]
[398437508,1765654461046,-3884.90327155,0.00054,120]
[398437509,1765654461080,-826.30739267,0.00054,120]
[398437510,1765654461115,-2172.78658216,0.00054,120]
[398437511,1765654461151,-173637.01873995,0.00054,60]
[398437512,1765654461188,-7545.78830578,0.00054,120]
[398437513,1765654461224,-455.68849855,0.00054,30]
[398437514,1765654461260,-3546.67801617,0.00054,120]
[398437515,1765654461300,-3964.90800813,0.00054,120]
[398437516,1765654461336,-152.0,0.00054243,120]
[398437517,1765654461373,-191.0,0.000543,120]
[398437518,1765654461407,-161.0,0.000543,120]
[398437519,1765654461444,-2493.22286091,0.000543,77]
[398437520,1765654461483,-18566.0,0.00054379,120]
[398437521,1765654461522,-2637.78816074,0.000544,120]
[398437522,1765654461559,-2000.0,0.0005444,49]
[398437523,1765654461601,-1000.0,0.00054443,120]
[398437524,1765654461639,-1600.0,0.00054458,60]
[398437525,1765654461676,-1350.75599337,0.0005449,120]
[398437526,1765654461720,-500.0,0.000545,120]
[398437527,1765654461756,-832908.38611077,0.000545,60]
[398437528,1765654461795,-50000.0,0.0005466,60]
[398437529,1765654461832,-50000.0,0.0005466,60]
[398437530,1765654461869,-50000.0,0.0005466,30]
[398437531,1765654461902,-51895.476764,0.0005466,30]
[398437532,1765654461938,-813829.50938646,0.0005469,120]
[398437535,1765654546881,150.0,0.000201,30]
[398437536,1765654547112,404.81892088,0.000209,30]
[398437538,1765654643355,-164.79,0.000302,30]
[398437539,1765654643390,-164.79,0.000321,30]
[398437540,1765654643425,-500.0,0.00032876,120]
[398437541,1765654643456,-164.79,0.000332,30]
[398437542,1765654643485,-500.0,0.00033972,120]
[398437543,1765654643515,-164.79,0.000346,30]
[398437544,1765654643545,-500.0,0.00035068,120]
[398437545,1765654643575,-183.29,0.000352,30]
[398437546,1765654643605,-500.0,0.00036164,120]
[398437547,1765654643635,-164.79,0.000363,30]
[398437548,1765654643669,-500.0,0.0003726,120]
[398437549,1765654643699,-164.79,0.000374,30]
[398437550,1765654643729,-170.99151263,0.00037753,120]
[398437551,1765654643774,-500.0,0.00038356,120]
[398437552,1765654643804,-164.79,0.00039,30]
[398437553,1765654643834,-500.0,0.00039452,120]
[398437554,1765654643864,-150.0,0.00040246,30]
[398437555,1765654643891,-472.3945261,0.00040246,30]
[398437556,1765654643918,-150.0,0.00040246,30]
[398437557,1765654643944,-455.01678848,0.00040246,30]
[398437558,1765654643973,-500.0,0.00040547,120]
[398437559,1765654644002,-3667.9,0.00041,30]
[398437560,1765654644031,-500.0,0.00041643,120]
[398437561,1765654644061,-705.7,0.00042437,30]
[398437562,1765654644087,-686.01,0.00042437,30]
[398437563,1765654647021,-500.0,0.00042739,120]
[398437564,1765654647050,-483.51018812,0.00043835,120]
[398437565,1765654647076,-500.0,0.00046,120]
[398437566,1765654647103,-500.0,0.000474,120]
[398437567,1765654647131,-164.79,0.00048,30]
[398437568,1765654647159,-500.0,0.000488,120]
[398437569,1765654647187,-3667.9,0.00049,30]
[398437570,1765654647216,-1000.0,0.00049315,120]
[398437571,1765654647244,-283.24,0.00049315,120]
[398437572,1765654647270,-271.1,0.00049611,120]
[398437573,1765654647299,-500.0,0.00050201,120]
[398437574,1765654647327,-1346.6,0.00050489,120]
[398437575,1765654647353,-983.05,0.00051,30]
[398437576,1765654647379,-1346.6,0.00051367,120]
[398437577,1765654647406,-500.0,0.00051601,120]
[398437578,1765654647435,-808.32,0.00053,30]
[398437579,1765654647463,-502.16920567,0.00053001,120]
[398437580,1765654647490,-500.0,0.00053016,60]
[398437581,1765654647519,-500.0,0.00053016,60]
[398437582,1765654647547,-500.0,0.00053016,60]
[398437583,1765654647576,-1000.0,0.00053543,30]
[398437584,1765654647603,-500.0,0.00053564,60]
[398437585,1765654647630,-500.0,0.00053564,60]
[398437586,1765654647658,-179.93,0.00054,60]
[398437587,1765654647683,-4000.0,0.00054,120]
[398437588,1765654647709,-500.0,0.00054112,60]
[398437589,1765654647736,-500.0,0.00054112,60]
[398437590,1765654647762,-500.0,0.00054112,60]
[398437591,1765654647786,-150.0,0.0005444,120]
[398437592,1765654647812,-700.0,0.0005444,120]
[398437593,1765654647838,-2075.99550997,0.0005444,120]
[398437594,1765654647864,-158.1,0.000546,120]
[398437595,1765654647890,-234.0,0.000546,77]
[398437596,1765654647918,-5003.2826081,0.0005465,120]
[398437597,1765654647944,-153.0,0.0005466,30]
[398437598,1765654647974,-153.0,0.0005466,30]
[398437599,1765654648001,-153.0,0.0005466,30]
[398437600,1765654648028,-500.0,0.0005466,60]
[398437601,1765654648056,-500.0,0.0005466,60]
[398437602,1765654648085,-300.0,0.00054689,120]
[398437603,1765654648112,-153.74850081,0.00054689,120]
[398437604,1765654648138,-500.0,0.00054689,120]
[398437605,1765654648166,-500.0,0.00054689,120]
[398437606,1765654648193,-500.0,0.00054689,120]
[398437607,1765654648221,-500.0,0.00054689,120]
[398437608,1765654648246,-500.0,0.00054689,120]
[398437609,1765654648272,-500.0,0.00054689,120]
[398437610,1765654648299,-300.0,0.00054689,120]
[398437611,1765654648327,-500.0,0.00054689,120]
[398437612,1765654648354,-500.0,0.00054689,120]
[398437613,1765654648382,-150.0,0.00054689,120]
[398437614,1765654648410,-500.0,0.00054689,120]
[398437615,1765654648437,-250.0,0.00054689,120]
[398437616,1765654648465,-150.0,0.00054689,120]
[398437617,1765654648491,-500.0,0.00054689,120]
[398437618,1765654648517,-500.0,0.00054689,120]
[398437619,1765654648542,-150.0,0.00054689,120]
[398437620,1765654648569,-276.57223857,0.00054689,120]
[398437621,1765654648595,-150.0,0.00054689,120]
[398437622,1765654648623,-150.0,0.00054689,120]
[398437623,1765654648650,-150.0,0.00054689,120]
[398437624,1765654648682,-150.0,0.00054689,120]
[398437625,1765654648715,-250.0,0.00054689,120]
[398437626,1765654648744,-169.00704215,0.00054689,120]
[398437627,1765654648770,-500.0,0.00054689,120]
[398437628,1765654648797,-500.0,0.00054689,120]
[398437629,1765654648825,-500.0,0.00054689,120]
[398437630,1765654648852,-150.0,0.00054689,120]
[398437631,1765654648878,-500.0,0.00054689,120]
[398437632,1765654648905,-219.04747942,0.00054689,120]
[398437633,1765654648934,-1000.0,0.00054689,120]
[398437634,1765654648961,-1000.0,0.00054689,120]
[398437635,1765654648991,-1000.0,0.00054689,120]
[398437636,1765654649018,-1000.0,0.00054689,120]
[398437637,1765654649046,-1000.0,0.00054689,120]
[398437638,1765654649076,-1000.0,0.00054689,120]
[398437639,1765654649104,-1000.0,0.00054689,120]
[398437640,1765654649135,-1000.0,0.00054689,120]
[398437641,1765654649164,-500.0,0.00054689,120]
[398437642,1765654649196,-1000.0,0.00054689,120]
[398437643,1765654649225,-161.20872846,0.00054689,120]
[398437644,1765654649251,-151.0,0.00054689,120]
[398437645,1765654649279,-1000.0,0.00054689,120]
[398437646,1765654649305,-500.0,0.00054689,120]
[398437647,1765654649332,-271.36866743,0.00054689,120]
[398437648,1765654649361,-414.0,0.00054689,120]
[398437649,1765654649390,-1000.0,0.00054689,120]
[398437650,1765654649417,-500.0,0.00054689,120]
[398437651,1765654649444,-160.12855638,0.00054689,120]
[398437652,1765654649470,-352.61826565,0.00054689,120]
[398437653,1765654649497,-995.0,0.00054689,120]
[398437654,1765654649524,-500.0,0.00054689,120]
[398437655,1765654649553,-995.0,0.00054689,120]
[398437656,1765654649902,-500.0,0.00054689,120]
[398437657,1765654649933,-1000.0,0.00054689,120]
[398437658,1765654649962,-995.0,0.00054689,120]
[398437659,1765654649989,-995.0,0.00054689,120]
[398437660,1765654650015,-151.0,0.00054689,120]
[398437661,1765654650040,-200.0,0.00054689,120]
[398437662,1765654650066,-995.0,0.00054689,120]
[398437663,1765654650091,-191.4226718,0.00054689,120]
[398437664,1765654650117,-995.0,0.00054689,120]
[398437665,1765654650143,-3043.78546036,0.00054689,120]
[398437666,1765654650169,-995.0,0.00054689,120]
[398437667,1765654650194,-216.52973342,0.00054689,120]
[398437668,1765654650221,-500.0,0.00054689,120]
[398437669,1765654650248,-995.0,0.00054689,120]
[398437670,1765654650277,-995.0,0.00054689,120]
[398437671,1765654650305,-500.19792976,0.00054689,120]
[398437672,1765654650332,-995.0,0.00054689,120]
[398437673,1765654650361,-995.0,0.00054689,120]
[398437674,1765654650387,-995.0,0.00054689,120]
[398437675,1765654650416,-995.0,0.00054689,120]
[398437676,1765654650443,-995.0,0.00054689,120]
[398437677,1765654650471,-995.0,0.00054689,120]
[398437678,1765654650497,-150.0,0.00054689,120]
[398437679,1765654650523,-150.0,0.00054689,120]
[398437680,1765654650549,-995.0,0.00054689,120]
[398437681,1765654650576,-500.0,0.00054689,120]
[398437682,1765654650602,-330.0,0.00054689,120]
[398437683,1765654650628,-500.0,0.00054689,120]
[398437684,1765654650656,-500.0,0.00054689,120]
[398437685,1765654650687,-500.0,0.00054689,120]
[398437686,1765654650714,-500.0,0.00054689,120]
[398437687,1765654650742,-500.0,0.00054689,120]
[398437688,1765654650769,-162.64172486,0.00054689,120]
[398437689,1765654650794,-150.0,0.00054689,120]
[398437690,1765654650820,-500.0,0.00054689,120]
[398437691,1765654650845,-500.0,0.00054689,120]
[398437692,1765654650878,-337060.44061354,0.0005469,120]
[398437693,1765654650904,-245.4633403,0.0005469,120]
[398437694,1765654650930,-497.63253855,0.0005469,120]
[398437695,1765654650955,-450.0,0.00054767,120]
[398437696,1765654650981,-203.77,0.00054795,30]
[398437697,1765654651006,-151.0,0.00054795,30]
[398437698,1765654651032,-156.587,0.00054795,30]
[398437699,1765654651057,-278.26485495,0.00054795,30]
[398437700,1765654651083,-878.0,0.00054795,120]
[398437701,1765654651108,-3000.0,0.00054795,30]
[398437702,1765654651133,-3000.0,0.00054795,30]
[398437703,1765654651159,-3000.0,0.00054795,30]
[398437704,1765654651184,-3000.0,0.00054795,30]
[398437705,1765654651211,-3000.0,0.00054795,30]
[398437706,1765654651237,-3000.0,0.00054795,30]
[398437707,1765654651262,-3000.0,0.00054795,30]
[398437708,1765654651287,-3000.0,0.00054795,30]
[398437709,1765654651313,-3000.0,0.00054795,30]
[398437710,1765654651341,-3000.0,0.00054795,30]
[398437711,1765654651368,-3000.0,0.00054795,30]
[398437712,1765654651400,-3000.0,0.00054795,30]
[398437713,1765654651428,-3000.0,0.00054795,30]
[398437714,1765654651457,-3000.0,0.00054795,30]
[398437715,1765654651485,-3000.0,0.00054795,30]
[398437716,1765654651512,-3000.0,0.00054795,30]
[398437717,1765654651539,-3000.0,0.00054795,30]
[398437718,1765654651565,-3000.0,0.00054795,30]
[398437719,1765654651591,-2027.0,0.00054795,30]
[398437720,1765654651617,-191.0,0.000548,120]
[398437721,1765654651644,-161.0,0.000548,120]
[398437722,1765654651671,-2125.87828395,0.000548,120]
[398437723,1765654651697,-177.88750113,0.000549,120]
[398437724,1765654651729,-218.23688189,0.00054918,30]
[398437725,1765654651757,-2924.12948136,0.0005495,120]
[398437726,1765654651785,-18089.0,0.00054975,60]
[398437727,1765654651813,-50000.0,0.00055,55]
[398437728,1765654651839,-1135.83245489,0.00055,120]
[398437729,1765654651866,-376.59076404,0.00055,120]
[398437730,1765654651892,-1063.51318932,0.00055,120]
[398437731,1765654651919,-214.82532939,0.00055,120]
[398437732,1765654651947,-500.0,0.00055,30]
[398437733,1765654651974,-160.38532861,0.00055,120]
[398437734,1765654652001,-1000.0,0.00055,120]
[398437735,1765654652027,-500.0,0.00055,120]
[398437736,1765654652053,-500.0,0.00055,120]
[398437737,1765654652082,-2024.0,0.00055,120]
[398437738,1765654652109,-3000.0,0.00055,120]
[398437739,1765654652137,-463.85,0.00055,120]
[398437740,1765654652163,-190.0,0.00055,60]
[398437741,1765654652191,-303.05242356,0.00055,120]
[398437742,1765654652542,-502.27,0.00055,30]
[398437743,1765654652586,-538.39,0.00055,120]
[398437744,1765654652615,-150.0,0.00055,90]
[398437745,1765654652641,-2423.9,0.00055,120]
[398437746,1765654652668,-150.0,0.00055,120]
[398437747,1765654652695,-829.47,0.00055,120]
[398437748,1765654652723,-2510.19710409,0.00055,120]
[398437749,1765654652751,-500.0,0.00055208,120]
[398437750,1765654652778,-500.0,0.00055208,120]
[398437751,1765654652805,-191.0,0.000553,120]
[398437752,1765654652830,-161.0,0.000553,120]
[398437753,1765654652856,-18566.0,0.00055379,120]
[398437754,1765654652883,-500.0,0.000555,120]
[398437755,1765654652909,-5000.0,0.0005568,69]
[398437756,1765654652937,-500.0,0.00055756,120]
[398437757,1765654652966,-191.0,0.000558,120]
[398437758,1765654652991,-161.0,0.000558,120]
[398437759,1765654653018,-18089.0,0.00055975,60]
[398437760,1765654653044,-1000.0,0.00056,120]
[398437761,1765654653071,-500.0,0.00056,120]
[398437762,1765654653097,-3000.0,0.00056,120]
[398437763,1765654653124,-300.0,0.00056,120]
[398437764,1765654653151,-3964.90800814,0.00056,120]
[398437765,1765654653177,-191.0,0.000563,120]
[398437766,1765654653204,-161.0,0.000563,120]
[398437767,1765654653232,-500.0,0.00056304,120]
[398437768,1765654653258,-500.0,0.00056304,120]
[398437769,1765654653287,-226.07777383,0.00056349,120]
[398437770,1765654653314,-18566.0,0.00056379,120]
[398437771,1765654653341,-500.0,0.000565,120]
[398437772,1765654653368,-2608.0,0.000566,120]
[398437773,1765654653395,-675.0,0.000566,120]
[398437774,1765654653423,-191.0,0.000568,120]
[398437775,1765654653448,-161.0,0.000568,120]
[398437776,1765654653475,-2000.0,0.0005685,69]
[398437777,1765654653501,-500.0,0.00056852,120]
[398437778,1765654653527,-152.0,0.00056955,120]
[398437779,1765654653553,-18089.0,0.00056975,60]
[398437780,1765654653580,-1000.0,0.00057,120]
[398437781,1765654653607,-500.0,0.00057,120]
[398437782,1765654653634,-3000.0,0.00057,120]
[398437783,1765654653662,-164.79,0.00057,60]
[398437784,1765654653689,-191.0,0.000573,120]
[398437785,1765654653714,-161.0,0.000573,120]
[398437786,1765654653740,-18566.0,0.00057379,120]
[398437787,1765654653767,-600.0,0.000574,120]
[398437788,1765654653793,-500.0,0.000574,120]
[398437789,1765654653819,-500.0,0.000575,120]
[398437790,1765654653845,-398.33581303,0.000575,30]
[398437791,1765654653871,-500.0,0.00057534,30]
[398437792,1765654654917,500.0,0.00054689,120]
[398437793,1765654654949,264.34080528,0.00054689,120]
[398437794,1765654654989,150.0,0.00054689,120]
[398437795,1765654655021,500.0,0.00054689,120]
[398437796,1765654655075,300.0,0.00054689,120]
[398437797,1765654655106,150.0,0.00054689,120]
[398437798,1765654655144,500.0,0.00054689,120]
[398437799,1765654655245,500.0,0.00054689,120]
[398437800,1765654655284,150.0,0.00054689,120]
[398437801,1765654655351,150.0,0.00054689,120]
[398437802,1765654655406,500.0,0.00054689,120]
[398437803,1765654655458,150.0,0.00054689,120]
[398437804,1765654655501,500.0,0.00054689,120]
[398437805,1765654655551,156.59661348,0.00054689,120]
[398437806,1765654655594,3285525.68655853,0.00057524,120]
[398437807,1765654663488,-1098.0,0.00042437,30]
[398437808,1765654663515,-198.83055042,0.00042437,30]
[398437809,1765654663542,-297.05441526,0.00042437,30]
[398437810,1765654663570,-1565.15377358,0.00042437,30]
[398437811,1765654663601,-2665.89346376,0.00042437,60]
[398437812,1765654663628,-269.0,0.00042437,120]
[398437813,1765654663655,-1346.81701,0.00042437,60]
[398437814,1765654663685,-1346.81701,0.00042437,60]
[398437815,1765654663713,-1346.81701,0.00042437,60]
[398437816,1765654663739,-1346.81701,0.00042437,60]
[398437817,1765654663766,-1346.81701,0.00042437,60]
[398437818,1765654663793,-1098.0,0.00042437,30]
[398437819,1765654663819,-517.75011369,0.00042437,30]
[398437820,1765654663848,-1098.0,0.00042437,30]
[398437821,1765654663874,-198.36366921,0.00042437,30]
[398437822,1765654663902,-1874.66025336,0.00042437,30]
[398437823,1765654663929,-2368.47325707,0.00042437,120]
[398437824,1765654663956,-1039.1670785,0.00042437,120]
[398437825,1765654663983,-2000.0,0.00042437,30]
[398437826,1765654664010,-2000.0,0.00042437,60]
[398437827,1765654664038,-2000.0,0.00042437,90]
[398437828,1765654664065,-2500.0,0.00042437,120]
[398437829,1765654664094,-50000.0,0.00042437,32]
[398437830,1765654664120,-628.51100523,0.00042437,120]
[398437831,1765654664147,-1332.7020896,0.00042437,60]
[398437832,1765654664174,-1332.7020896,0.00042437,60]
[398437833,1765654664200,-1332.7020896,0.00042437,60]
[398437834,1765654664229,-1332.7020896,0.00042437,60]
[398437835,1765654664256,-1332.7020896,0.00042437,60]
[398437836,1765654664282,-1332.7020896,0.00042437,60]
[398437837,1765654664317,-1332.7020896,0.00042437,60]
[398437838,1765654664350,-1332.7020896,0.00042437,60]
[398437839,1765654664379,-1332.7020896,0.00042437,60]
[398437840,1765654664408,-1332.7020896,0.00042437,60]
[398437841,1765654664437,-1332.7020896,0.00042437,60]
[398437842,1765654664467,-1332.7020896,0.00042437,60]
[398437843,1765654664495,-1332.7020896,0.00042437,60]
[398437844,1765654664523,-2713.31933211,0.00042437,90]
[398437845,1765654664551,-306.01165337,0.00042437,120]
[398437846,1765654664582,-2130.90244465,0.00042437,30]
[398437847,1765654664612,-2433.35631351,0.00042437,120]
[398437848,1765654664641,-2727.38584308,0.00042437,120]
[398437849,1765654664673,-1487.91642652,0.00042437,30]
[398437850,1765654664705,-203.56661082,0.00042437,120]
[398437851,1765654664735,-2165.74129596,0.00042437,30]
[398437852,1765654664770,-3025.77045183,0.00042437,120]
[398437853,1765654664803,-2250.2463604,0.00042437,120]
[398437854,1765654664831,-155.37444748,0.00042437,120]
[398437855,1765654664859,-1858.18470461,0.00042437,30]
[398437856,1765654664888,-152.76861279,0.00042437,60]
[398437857,1765654664917,-1628.30148496,0.00042437,120]
[398437858,1765654664946,-1422.01546928,0.00042437,120]
[398437859,1765654664975,-1632.70398972,0.00042437,120]
[398437860,1765654665004,-169.48765197,0.00042437,30]
[398437861,1765654665032,-2328.49678325,0.00042437,120]
[398437862,1765654665061,-434.3386612,0.00042437,120]
[398437863,1765654665091,-1067.97917613,0.00042437,120]
[398437864,1765654665119,-178.40044788,0.00042437,30]
[398437865,1765654665147,-1166.91954421,0.00042437,120]
[398437866,1765654665176,-2756.41158148,0.00042437,120]
[398437867,1765654665210,-3322.13516759,0.00042437,80]
[398437868,1765654665246,-1945.52553823,0.00042437,30]
[398437869,1765654665279,-1880.18758914,0.00042437,30]
[398437870,1765654665310,-1930.36211845,0.00042437,120]
[398437871,1765654665339,-1564.11693,0.00042437,30]
[398437872,1765654665368,-2076.35497198,0.00042437,30]
[398437873,1765654665397,-277.98164827,0.00042437,90]
[398437874,1765654665429,-1400.72426229,0.00042437,30]
[398437875,1765654665461,-167.4106806,0.00042437,120]
[398437876,1765654665491,-3073.0320289,0.00042437,120]
[398437877,1765654665521,-2252.32672817,0.00042437,52]
[398437878,1765654665552,-2074.28880869,0.00042437,30]
[398437879,1765654665582,-269.25649789,0.00042437,120]
[398437880,1765654665612,-4221.83477883,0.00042437,30]
[398437881,1765654665642,-466.88705693,0.00042437,120]
[398437882,1765654665679,-1196.36560724,0.00042437,120]
[398437883,1765654665711,-2208.82460731,0.00042437,90]
[398437884,1765654665741,-1500.99553951,0.00042437,30]
[398437885,1765654665770,-2830.56574617,0.00042437,30]
[398437886,1765654665801,-3137.84162688,0.00042437,120]
[398437887,1765654665831,-2186.12305491,0.00042437,120]
[398437888,1765654665862,-2338.88558626,0.00042437,30]
[398437889,1765654665891,-677.10047964,0.00042437,30]
[398437890,1765654665921,-239.78340315,0.00042437,30]
[398437891,1765654665952,-2478.43205858,0.00042437,31]
[398437892,1765654666323,-886.20805399,0.00042437,120]
[398437893,1765654666403,-1254.746,0.00042437,120]
[398437894,1765654666432,-500.0,0.00042437,120]
[398437895,1765654666460,-500.0,0.00042437,120]
[398437896,1765654666489,-500.0,0.00042437,120]
[398437897,1765654666517,-500.0,0.00042437,120]
[398437898,1765654666544,-500.0,0.00042437,120]
[398437899,1765654666574,-500.0,0.00042437,120]
[398437900,1765654666603,-500.0,0.00042437,120]
[398437901,1765654666630,-500.0,0.00042437,120]
[398437902,1765654666657,-500.0,0.00042437,120]
[398437903,1765654666684,-500.0,0.00042437,120]
[398437904,1765654666711,-500.0,0.00042437,120]
[398437905,1765654666741,-500.0,0.00042437,120]
[398437906,1765654666768,-500.0,0.00042437,120]
[398437907,1765654666797,-500.0,0.00042437,120]
[398437908,1765654666824,-500.0,0.00042437,120]
[398437909,1765654666861,-500.0,0.00042437,120]
[398437910,1765654666893,-500.0,0.00042437,120]
[398437911,1765654666922,-500.0,0.00042437,120]
[398437912,1765654666949,-500.0,0.00042437,120]
[398437913,1765654666979,-500.0,0.00042437,120]
[398437914,1765654667007,-500.0,0.00042437,120]
[398437915,1765654667037,-500.0,0.00042437,120]
[398437916,1765654667067,-500.0,0.00042437,120]
[398437917,1765654667096,-362.99571371,0.00042437,120]
[398437918,1765654667126,-500.0,0.00042437,120]
[398437919,1765654667156,-500.0,0.00042437,120]
[398437920,1765654667184,-500.0,0.00042437,120]
[398437921,1765654667214,-500.0,0.00042437,120]
[398437922,1765654667241,-500.0,0.00042437,120]
[398437923,1765654667270,-502.68588287,0.00042437,120]
[398437924,1765654667299,-509.73,0.00042437,120]
[398437925,1765654667326,-509.73,0.00042437,120]
[398437926,1765654667353,-509.73,0.00042437,120]
[398437927,1765654667381,-509.73,0.00042437,120]
[398437928,1765654667408,-509.73,0.00042437,120]
[398437929,1765654667436,-509.73,0.00042437,120]
[398437930,1765654667463,-509.73,0.00042437,120]
[398437931,1765654667491,-509.73,0.00042437,120]
[398437932,1765654667519,-509.73,0.00042437,120]
[398437933,1765654667548,-509.73,0.00042437,120]
[398437934,1765654667575,-509.73,0.00042437,120]
[398437935,1765654667605,-509.73,0.00042437,120]
[398437936,1765654667633,-509.73,0.00042437,120]
[398437937,1765654667662,-509.73,0.00042437,120]
[398437938,1765654667690,-509.73,0.00042437,120]
[398437939,1765654667721,-509.73,0.00042437,120]
[398437940,1765654667751,-509.73,0.00042437,120]
[398437941,1765654667781,-509.73,0.00042437,120]
[398437942,1765654667810,-509.73,0.00042437,120]
[398437943,1765654667838,-509.73,0.00042437,120]
[398437944,1765654667869,-509.73,0.00042437,120]
[398437945,1765654667898,-509.73,0.00042437,120]